{"text_format":"1","workbook":"xlsx","n_sheets":3,"sheets":["Soundness Oven Record","Revision History","Lists"],"not_rendered":{"charts":0,"images":1,"macros":1,"external_links":0,"defined_names":25,"comments":0,"pivot_tables":0},"unopened":[],"bounds":{"document_bytes":16777216,"sheet_cells":100000,"rows_first":2000,"rows_last":500,"rows_between":2000,"halvings":0,"cell_chars":16384,"cell_head_chars":4096},"cells_cut":0,"cells_raw":0,"read":"whole","date_system":"1900"}

{"sheet":"Soundness Oven Record","index":0,"n_rows":107,"n_cols":12,"rows_kept":107,"cut":false,"hidden":false,"merged":[[86,5,86,6],[87,5,87,6],[88,5,88,6],[86,3,86,4],[87,3,87,4],[88,3,88,4],[86,1,86,2],[87,1,87,2],[88,1,88,2],[77,9,78,9],[79,8,83,8],[77,7,78,7],[77,1,78,1],[77,2,77,4],[77,5,77,6],[77,8,78,8],[69,9,70,9],[71,8,75,8],[69,7,70,7],[69,1,70,1],[69,2,69,4],[69,5,69,6],[69,8,70,8],[61,9,62,9],[63,8,67,8],[61,7,62,7],[61,1,62,1],[61,2,61,4],[61,5,61,6],[61,8,62,8],[53,9,54,9],[53,7,54,7],[53,8,54,8],[53,1,54,1],[53,2,53,4],[53,5,53,6],[34,2,34,3],[35,2,35,3],[36,2,36,3],[37,2,37,3],[38,2,38,3],[39,2,39,3],[40,2,40,3],[31,4,31,5],[32,4,32,5],[96,3,96,9],[92,0,92,9],[96,0,96,2],[94,0,94,2],[38,4,38,5],[39,4,39,5],[32,8,40,9],[47,8,51,8],[40,4,40,5],[55,8,59,8],[45,1,46,1],[45,2,45,4],[45,5,45,6],[45,8,46,8],[45,9,46,9],[45,7,46,7],[42,1,42,2],[42,5,42,6],[33,4,33,5],[34,4,34,5],[35,4,35,5],[36,4,36,5],[37,4,37,5],[32,2,32,3],[106,3,106,9],[106,0,106,2],[104,0,104,2],[102,0,102,2],[100,0,100,2],[102,3,102,9],[104,3,104,9],[100,3,100,9],[98,0,98,2],[98,3,98,9],[13,0,13,2],[11,0,11,2],[9,0,9,2],[23,3,23,9],[94,3,94,9],[23,0,23,2],[21,0,21,2],[19,0,19,2],[17,0,17,2],[9,3,9,9],[19,3,19,9],[15,3,15,9],[15,0,15,2],[21,3,21,9],[13,3,13,9],[11,3,11,9],[17,3,17,9],[30,1,31,1],[30,8,31,9],[30,2,30,5],[30,6,31,6],[30,7,31,7],[31,2,31,3],[33,2,33,3],[7,0,7,2],[5,0,5,2],[3,0,3,2],[2,0,2,9],[0,0,0,9],[1,0,1,9],[3,3,3,9],[5,3,5,9],[7,3,7,9]]}
["Texas Department of Transportation"]
["Soundness Oven Verification Record"]
[{"$f":"IF(OR(ISBLANK(Serial_Number),ISBLANK(Model_Number),ISBLANK(Description),ISBLANK(Manufacturer_Name),ISBLANK(Lab_Unit),ISBLANK(Calibration_Method),ISBLANK(Completed_Date),ISBLANK(Action_Recommended),ISBLANK(Overall_Status),ISBLANK(Remarks),ISBLANK(Authority),ISBLANK(Performed_By),ISBLANK(Reviewed_By),ISBLANK(Reviewed_Date),AND(ISBLANK(NonTxDOT_Other),Authority=\"Non-TxDOT/Other\"),AND(ISBLANK(District_Lab_Area_Office),Authority=\"District Lab/Area Office\"),AND(ISBLANK(MTD_Section),Authority=\"Materials and Tests Division\")),\"***ALL BLANK FIELDS MUST BE ADDRESSED.***\",\"\")","v":"***ALL BLANK FIELDS MUST BE ADDRESSED.***"},null,null,null,null,null,null,null,null,null,null,{"$f":"IF(A3=\"\",\"\",\"Instructions\")","v":"Instructions"}]
["Serial Number:",null,null,null,null,null,null,null,null,null,null,{"$f":"IF(ISBLANK(Serial_Number),\"Enter Serial Number exactly as it appears in APCM. SN must correspond to the physical piece of equipment.\",\"\")","v":"Enter Serial Number exactly as it appears in APCM. SN must correspond to the physical piece of equipment."}]
[]
["Model Number:",null,null,null,null,null,null,null,null,null,null,{"$f":"IF(ISBLANK(Model_Number),\"Enter Model Number exactly as it appears in APCM.\",\"\")","v":"Enter Model Number exactly as it appears in APCM."}]
[]
["Description:",null,null,null,null,null,null,null,null,null,null,{"$f":"IF(ISBLANK(Description),\"Enter Description exactly as it appears in APCM.\",\"\")","v":"Enter Description exactly as it appears in APCM."}]
[]
["Manufacturer Name:",null,null,null,null,null,null,null,null,null,null,{"$f":"IF(ISBLANK(Manufacturer_Name),\"Enter Manufacturer exactly as it appears in APCM. If no manufacturer exists, enter 'Not Available'.\",\"\")","v":"Enter Manufacturer exactly as it appears in APCM. If no manufacturer exists, enter 'Not Available'."}]
[]
["Lab Unit:",null,null,null,null,null,null,null,null,null,null,{"$f":"IF(ISBLANK(Lab_Unit),\"Enter the Lab Unit exactly as it appears in APCM.\",\"\")","v":"Enter the Lab Unit exactly as it appears in APCM."}]
[]
["Calibration Method:",null,null,"Tex-498-A",null,null,null,null,null,null,null,{"$f":"IF(ISBLANK(Calibration_Method),\"Select the calibration/verification/standardization procedure used.\",\"\")","v":""}]
[]
["Completed Date:",null,null,null,null,null,null,null,null,null,null,{"$f":"IF(ISBLANK(Completed_Date),\"Enter the actual date the calibration/verification/standardization was performed.\",\"\")","v":"Enter the actual date the calibration/verification/standardization was performed."}]
[]
["Calibration Interval (months):",null,null,12]
[]
["Next Due Date:",null,null,{"$f":"IF(Overall_Status=\"FAIL\",\"N/A\",IF(D16=\"\",\"\",(DATE(YEAR(D16),MONTH(D16)+D18,DAY(D16)))))","v":""},null,null,null,null,null,null,null,{"$f":"IF(Next_Due_Date=\"\",\"This field will automatically populate when 'Completed Date' has been entered.\",\"\")","v":"This field will automatically populate when 'Completed Date' has been entered."}]
[]
["Overall Status:",null,null,null,null,null,null,null,null,null,null,{"$f":"IF(ISBLANK(Overall_Status),\"Select the appropriate status from the drop-down list. If equipment fails, the equipment record must be made inactive in APCM.\",\"\")","v":"Select the appropriate status from the drop-down list. If equipment fails, the equipment record must be made inactive in APCM."}]
[]
["Action Recommended:",null,null,null,null,null,null,null,null,null,null,{"$f":"IF(ISBLANK(Action_Recommended),\"Ensure that 'Overall Status' has been selected, then select the appropriate action from the drop-down list.\",\"\")","v":"Ensure that 'Overall Status' has been selected, then select the appropriate action from the drop-down list."}]
[]
["Detailed Results:"]
[]
[null,"Temperature Verification:"]
[null,"Temperature Unit",null,null,{"$f":"IF(C29= \"˚F\", \"Set Temperature,˚F\",\"Set Temperature,˚C\")","v":"Set Temperature,˚C"},null,null,{"$f":"IF(C29= \"˚F\", \"Oven Stability,˚F\",\"Oven Stability ,˚C\")","v":"Oven Stability ,˚C"}]
[]
[null,"Location",{"$f":"IF(C29= \"˚F\", \"Thermometer Reading,˚F\",\"Thermometer Reading,˚C\")","v":"Thermometer Reading,˚C"},null,null,null,{"$f":"IF(C29= \"˚F\", \"Readings Average,˚F\",\"Readings Average˚C\")","v":"Readings Average˚C"},{"$f":"IF(C29= \"˚F\", \"Difference from Set Temperature,˚F\",\"Difference from Set Temperature,˚C\")","v":"Difference from Set Temperature,˚C"},{"$f":"IF(C29= \"˚F\", \"Overall Average Temperature,˚F\",\"Overall Average Temperature,˚C\")","v":"Overall Average Temperature,˚C"}]
[null,null,"Reading 1 ",null,"Reading 2 "]
[null,1,null,null,null,null,{"$f":"IF(OR(C33=\"\",E33=\"\"),\"\",AVERAGE(C33:F33))","v":""},{"$f":"IF(OR(C33=\"\",E33=\"\"),\"\",ABS($F$29-G33))","v":""},{"$f":"IF(OR(G33=\"\"),\"\",AVERAGE(G33:G41))","v":""}]
[null,2,null,null,null,null,{"$f":"IF(OR(C34=\"\",E34=\"\"),\"\",AVERAGE(C34:F34))","v":""},""]
[null,3,null,null,null,null,"",""]
[null,4,null,null,null,null,"",""]
[null,5,null,null,null,null,"",""]
[null,6,null,null,null,null,"",""]
[null,7,null,null,null,null,"",""]
[null,8,null,null,null,null,"",""]
[null,9,null,null,null,null,"",""]
[]
[null,{"$f":"IF(C29= \"˚F\", \"Offset,˚F\",\"Offset,˚C\")","v":"Offset,˚C"},null,{"$f":"IF(ISERROR(F29-I33),\"\",F29-I33)","v":""},null,"Number of Shelves"]
[]
[null,"Evaporation Verification:"]
[null,"Shelf 1","Initial Weight, g",null,null,"Weight after 4 hours, g",null,"Evaporation Rate, g/hr.","Requirement","Pass/Fail"]
[null,null,"Tare","Water","Total","Total","Water"]
[null,"Top Left",null,null,{"$f":"IF(C48=\"\",\"\",SUM(C48:D48))","v":""},null,{"$f":"IF(OR(F48=\"\",C48=\"\",D48=\"\"), \"\",E48-F48)","v":""},{"$f":"IF(G48=\"\",\"\",G48/4)","v":""},"min 25 g/hr.",{"$f":"IF(H48=\"\", \"\", (IF(H48>=25, \"Pass\", \"Fail\")))","v":""}]
[null,"Top Right",null,null,{"$f":"IF(C49=\"\",\"\",SUM(C49:D49))","v":""},null,{"$f":"IF(OR(F49=\"\",C49=\"\",D49=\"\"), \"\",E49-F49)","v":""},{"$f":"IF(G49=\"\",\"\",G49/4)","v":""},null,{"$f":"IF(H49=\"\", \"\", (IF(H49>=25, \"Pass\", \"Fail\")))","v":""}]
[null,"Center",null,null,{"$f":"IF(C50=\"\",\"\",SUM(C50:D50))","v":""},null,{"$f":"IF(OR(F50=\"\",C50=\"\",D50=\"\"), \"\",E50-F50)","v":""},"",null,{"$f":"IF(H50=\"\", \"\", (IF(H50>=25, \"Pass\", \"Fail\")))","v":""}]
[null,"Bottom Left",null,null,{"$f":"IF(C51=\"\",\"\",SUM(C51:D51))","v":""},null,{"$f":"IF(OR(F51=\"\",C51=\"\",D51=\"\"), \"\",E51-F51)","v":""},"",null,{"$f":"IF(H51=\"\", \"\", (IF(H51>=25, \"Pass\", \"Fail\")))","v":""}]
[null,"Bottom Right",null,null,{"$f":"IF(C52=\"\",\"\",SUM(C52:D52))","v":""},null,{"$f":"IF(OR(F52=\"\",C52=\"\",D52=\"\"), \"\",E52-F52)","v":""},"",null,{"$f":"IF(H52=\"\", \"\", (IF(H52>=25, \"Pass\", \"Fail\")))","v":""}]
[]
[null,"Shelf 2","Initial Weight, g",null,null,"Weight after 4 hours, g",null,"Evaporation Rate, g/hr.","Requirement","Pass/Fail"]
[null,null,"Tare","Water","Total","Total","Water"]
[null,"Top Left",null,null,{"$f":"IF(C56=\"\",\"\",SUM(C56:D56))","v":""},null,{"$f":"IF(OR(F56=\"\",C56=\"\",D56=\"\"), \"\",E56-F56)","v":""},{"$f":"IF(G56=\"\",\"\",G56/4)","v":""},"min 25 g/hr.",{"$f":"IF(H56=\"\", \"\", (IF(H56>=25, \"Pass\", \"Fail\")))","v":""}]
[null,"Top Right",null,null,"",null,{"$f":"IF(OR(F57=\"\",C57=\"\",D57=\"\"), \"\",E57-F57)","v":""},{"$f":"IF(G57=\"\",\"\",G57/4)","v":""},null,{"$f":"IF(H57=\"\", \"\", (IF(H57>=25, \"Pass\", \"Fail\")))","v":""}]
[null,"Center",null,null,"",null,"","",null,{"$f":"IF(H58=\"\", \"\", (IF(H58>=25, \"Pass\", \"Fail\")))","v":""}]
[null,"Bottom Left",null,null,"",null,"","",null,{"$f":"IF(H59=\"\", \"\", (IF(H59>=25, \"Pass\", \"Fail\")))","v":""}]
[null,"Bottom Right",null,null,"",null,"","",null,{"$f":"IF(H60=\"\", \"\", (IF(H60>=25, \"Pass\", \"Fail\")))","v":""}]
[]
[null,"Shelf 3","Initial Weight, g",null,null,"Weight after 4 hours, g",null,"Evaporation Rate, g/hr.","Requirement","Pass/Fail"]
[null,null,"Tare","Water","Total","Total","Water"]
[null,"Top Left",null,null,{"$f":"IF(C64=\"\",\"\",SUM(C64:D64))","v":""},null,{"$f":"IF(OR(F64=\"\",C64=\"\",D64=\"\"), \"\",E64-F64)","v":""},{"$f":"IF(G64=\"\",\"\",G64/4)","v":""},"min 25 g/hr.",{"$f":"IF(H64=\"\", \"\", (IF(H64>=25, \"Pass\", \"Fail\")))","v":""}]
[null,"Top Right",null,null,"",null,{"$f":"IF(OR(F65=\"\",C65=\"\",D65=\"\"), \"\",E65-F65)","v":""},{"$f":"IF(G65=\"\",\"\",G65/4)","v":""},null,{"$f":"IF(H65=\"\", \"\", (IF(H65>=25, \"Pass\", \"Fail\")))","v":""}]
[null,"Center",null,null,"",null,"","",null,{"$f":"IF(H66=\"\", \"\", (IF(H66>=25, \"Pass\", \"Fail\")))","v":""}]
[null,"Bottom Left",null,null,"",null,"","",null,{"$f":"IF(H67=\"\", \"\", (IF(H67>=25, \"Pass\", \"Fail\")))","v":""}]
[null,"Bottom Right",null,null,"",null,"","",null,{"$f":"IF(H68=\"\", \"\", (IF(H68>=25, \"Pass\", \"Fail\")))","v":""}]
[]
[null,"Shelf 4","Initial Weight, g",null,null,"Weight after 4 hours, g",null,"Evaporation Rate, g/hr.","Requirement","Pass/Fail"]
[null,null,"Tare","Water","Total","Total","Water"]
[null,"Top Left",null,null,{"$f":"IF(C72=\"\",\"\",SUM(C72:D72))","v":""},null,{"$f":"IF(OR(F72=\"\",C72=\"\",D72=\"\"), \"\",E72-F72)","v":""},{"$f":"IF(G72=\"\",\"\",G72/4)","v":""},"min 25 g/hr.",{"$f":"IF(H72=\"\", \"\", (IF(H72>=25, \"Pass\", \"Fail\")))","v":""}]
[null,"Top Right",null,null,"",null,{"$f":"IF(OR(F73=\"\",C73=\"\",D73=\"\"), \"\",E73-F73)","v":""},{"$f":"IF(G73=\"\",\"\",G73/4)","v":""},null,{"$f":"IF(H73=\"\", \"\", (IF(H73>=25, \"Pass\", \"Fail\")))","v":""}]
[null,"Center",null,null,"",null,"","",null,{"$f":"IF(H74=\"\", \"\", (IF(H74>=25, \"Pass\", \"Fail\")))","v":""}]
[null,"Bottom Left",null,null,"",null,"","",null,{"$f":"IF(H75=\"\", \"\", (IF(H75>=25, \"Pass\", \"Fail\")))","v":""}]
[null,"Bottom Right",null,null,"",null,"","",null,{"$f":"IF(H76=\"\", \"\", (IF(H76>=25, \"Pass\", \"Fail\")))","v":""}]
[]
[null,"Shelf 5","Initial Weight, g",null,null,"Weight after 4 hours, g",null,"Evaporation Rate, g/hr.","Requirement","Pass/Fail"]
[null,null,"Tare","Water","Total","Total","Water"]
[null,"Top Left",null,null,{"$f":"IF(C80=\"\",\"\",SUM(C80:D80))","v":""},null,{"$f":"IF(OR(F80=\"\",C80=\"\",D80=\"\"), \"\",E80-F80)","v":""},{"$f":"IF(G80=\"\",\"\",G80/4)","v":""},"min 25 g/hr.",{"$f":"IF(H80=\"\", \"\", (IF(H80>=25, \"Pass\", \"Fail\")))","v":""}]
[null,"Top Right",null,null,"",null,{"$f":"IF(OR(F81=\"\",C81=\"\",D81=\"\"), \"\",E81-F81)","v":""},{"$f":"IF(G81=\"\",\"\",G81/4)","v":""},null,{"$f":"IF(H81=\"\", \"\", (IF(H81>=25, \"Pass\", \"Fail\")))","v":""}]
[null,"Center",null,null,"",null,"","",null,{"$f":"IF(H82=\"\", \"\", (IF(H82>=25, \"Pass\", \"Fail\")))","v":""}]
[null,"Bottom Left",null,null,"",null,"","",null,{"$f":"IF(H83=\"\", \"\", (IF(H83>=25, \"Pass\", \"Fail\")))","v":""}]
[null,"Bottom Right",null,null,"",null,"","",null,{"$f":"IF(H84=\"\", \"\", (IF(H84>=25, \"Pass\", \"Fail\")))","v":""}]
[]
[null,"Standard/Reference Equipment:"]
[null,"Equipment",null,"Equipment ID",null,"Equipment Expiration"]
[null,"Thermometer"]
[null,"Timer"]
[]
[]
["Remarks:"]
[null,null,null,null,null,null,null,null,null,null,null,{"$f":"IF(ISBLANK(Remarks),\"Enter any comments regarding the equipment calibration/verification/standardization. \nComments must be entered for Action Recommended of 'Other' and/or Overall Status of 'Fail'. \nIf no comments are needed, enter 'None'.\",\"\")","v":"Enter any comments regarding the equipment calibration/verification/standardization. \nComments must be entered for Action Recommended of 'Other' and/or Overall Status of 'Fail'. \nIf no comments are needed, enter 'None'."}]
[]
["Authority:",null,null,null,null,null,null,null,null,null,null,{"$f":"IF(ISBLANK(Authority),\"Select the appropriate calibrating authority from the drop-down list.\",\"\")","v":"Select the appropriate calibrating authority from the drop-down list."}]
[]
["MTD Section:",null,null,null,null,null,null,null,null,null,null,{"$f":"IF(ISBLANK(MTD_Section),\"Enter the MTD Section that performed the calibration/verification/standardization.\",\"\")","v":"Enter the MTD Section that performed the calibration/verification/standardization."}]
[]
["District Lab/Area Office:",null,null,null,null,null,null,null,null,null,null,{"$f":"IF(ISBLANK(District_Lab_Area_Office),\"Enter the name of the district lab or area office that performed the calibration/verification/standardization.\",\"\")","v":"Enter the name of the district lab or area office that performed the calibration/verification/standardization."}]
[]
["Non-TxDOT/Other Firm:",null,null,null,null,null,null,null,null,null,null,{"$f":"IF(ISBLANK(D101),\"Enter the name of the third-party entity that performed the calibration/verification/standardization.\",\"\")","v":"Enter the name of the third-party entity that performed the calibration/verification/standardization."}]
[]
["Performed By:",null,null,null,null,null,null,null,null,null,null,{"$f":"IF(ISBLANK(Performed_By),\"Enter the name of the individual who performed the calibration/verification/standardization.\",\"\")","v":"Enter the name of the individual who performed the calibration/verification/standardization."}]
[]
["Reviewed By:",null,null,null,null,null,null,null,null,null,null,{"$f":"IF(ISBLANK(Reviewed_By),\"Enter the name of the individual who reviewed the record for completeness and accuracy.\",\"\")","v":"Enter the name of the individual who reviewed the record for completeness and accuracy."}]
[]
["Reviewed Date:",null,null,null,null,null,null,null,null,null,null,{"$f":"IF(ISBLANK(Reviewed_Date),\"Enter the actual date the record was reviewed.\",IF(Reviewed_Date<Completed_Date,\"Reviewed Date must be after Completed Date.\",\"\"))","v":"Enter the actual date the record was reviewed."}]

{"sheet":"Revision History","index":1,"n_rows":2,"n_cols":3,"rows_kept":2,"cut":false,"hidden":false,"merged":[]}
["Revision Date","Revision Description","Revised By"]
["2023-02-02","Updated to new template format.","A. Melton"]

{"sheet":"Lists","index":2,"n_rows":64,"n_cols":8,"rows_kept":64,"cut":false,"hidden":true,"merged":[]}
["Status","Pass","Fail","Authority","MTD Sections","Calibration_Method",null,"Date Range"]
["Pass","None","Repair","Materials and Tests Division","Rigid Pavements","Tex-198-E",null,"2000-01-01"]
["Fail","Repair","Replace","District Lab/Area Office","Flexible Pavements","Tex-237-F",null,"2100-01-01"]
[null,"Replace","Other (See Remarks)","Non-TxDOT/Other","Soils & Aggregates","Tex-498-A"]
[null,"Other (See Remarks)",null,null,"Coatings, Calibration, & Traffic Materials","Tex-900-K"]
[null,null,null,null,null,"Tex-901-K"]
[null,null,null,null,null,"Tex-902-K"]
[null,null,null,null,null,"Tex-903-K"]
[null,null,null,null,null,"Tex-905-K"]
[null,null,null,null,null,"Tex-907-K"]
[null,null,null,null,null,"Tex-909-K"]
[null,null,null,null,null,"Tex-911-K"]
[null,null,null,null,null,"Tex-913-K"]
[null,null,null,null,null,"Tex-914-K"]
[null,null,null,null,null,"Tex-916-K"]
[null,null,null,null,null,"Tex-920-K"]
[null,null,null,null,null,"Tex-921-K"]
[null,null,null,null,null,"Tex-922-K"]
[null,null,null,null,null,"Tex-923-K"]
[null,null,null,null,null,"Tex-924-K"]
[null,null,null,null,null,"Tex-925-K"]
[null,null,null,null,null,"Tex-926-K"]
[null,null,null,null,null,"Tex-927-K"]
[null,null,null,null,null,"Tex-930-K"]
[null,null,null,null,null,"AASHTO R28"]
[null,null,null,null,null,"AASHTO T202"]
[null,null,null,null,null,"AASHTO T228"]
[null,null,null,null,null,"AASHTO T240"]
[null,null,null,null,null,"AASHTO T313"]
[null,null,null,null,null,"AASHTO T315"]
[null,null,null,null,null,"AASHTO T316"]
[null,null,null,null,null,"AASHTO T48"]
[null,null,null,null,null,"AASHTO T49"]
[null,null,null,null,null,"AASHTO T50"]
[null,null,null,null,null,"AASHTO T51"]
[null,null,null,null,null,"AASHTO T53"]
[null,null,null,null,null,"AASHTO T59"]
[null,null,null,null,null,"ASME B40"]
[null,null,null,null,null,"ASME B89"]
[null,null,null,null,null,"ASTM C109"]
[null,null,null,null,null,"ASTM C1231"]
[null,null,null,null,null,"ASTM C143"]
[null,null,null,null,null,"ASTM C151"]
[null,null,null,null,null,"ASTM C1702"]
[null,null,null,null,null,"ASTM C173"]
[null,null,null,null,null,"ASTM C174"]
[null,null,null,null,null,"ASTM C192"]
[null,null,null,null,null,"ASTM C204"]
[null,null,null,null,null,"ASTM C231"]
[null,null,null,null,null,"ASTM C430"]
[null,null,null,null,null,"ASTM C511"]
[null,null,null,null,null,"ASTM C604"]
[null,null,null,null,null,"ASTM C617"]
[null,null,null,null,null,"ASTM C78"]
[null,null,null,null,null,"ASTM D4237"]
[null,null,null,null,null,"ASTM C6084"]
[null,null,null,null,null,"ASTM E10"]
[null,null,null,null,null,"ASTM E18"]
[null,null,null,null,null,"ASTM E2309"]
[null,null,null,null,null,"ASTM E4"]
[null,null,null,null,null,"ASTM E83"]
[null,null,null,null,null,"EXT - External Calibration"]
[null,null,null,null,null,"NA - Not Applicable"]
[null,null,null,null,null,"SS - Supplier's Standard"]